[Event "Hungarian Youth-ch U10 2022"]
[Site "Eger"]
[Date "2022.07.25"]
[Round "3.4"]
[White "Brieber, Benedek"]
[Black "Meszaros-Csonka, David"]
[Result "0-1"]
[ECO "D00"]
[WhiteElo "1369"]
[BlackElo "1361"]
[Annotator "NA RC COMBH"]
[PlyCount "94"]
[EventDate "2022.07.21"]
[EventType "tourn"]
[EventCountry "HUN"]
[SourceTitle "playchess.com"]
[Source "ChessBase"]
[SourceQuality "1"]
[TimeControl "40/5400+30:1800+30"]

1. d4 {[%emt 0:00:34]} d5 {[%emt 0:00:42]} 2. Nc3 {[%emt 0:00:33]} Nf6 {[%emt 0:01:31]} 3. Bf4 {[%emt 0:00:28]} a6 {[%emt 0:01:40]} 4. Nf3 {[%emt 0:01:51]} e6 {[%emt 0:03:07]} 5. g3 {[%emt 0:01:28]} c5 {[%emt 0:02:50]} 6. e3 {[%emt 0:00:14]} Nc6 {[%emt 0:01:16]} 7. Bg2 {[%emt 0:00:57]} Be7 {[%emt 0:03:24]} 8. O-O {[%emt 0:00:14]} O-O {[%emt 0:01:07]} 9. Ne2 {[%emt 0:04:42]} Bd7 {[%emt 0:09:56]} 10. c3 {[%emt 0:00:46]} Rc8 {[%emt 0:03:09]} 11. Qc2 {[%emt 0:03:13]} b5 {[%emt 0:05:30]} 12. Ng5 {[%emt 0:00:34]} h6 {[%emt 0:03:25]} 13. Nf3 {[%emt 0:01:01]} Qb6 {[%emt 0:03:47]} 14. Ne5 {[%emt 0:00:51]} g5 {[%emt 0:12:37]} 15. Nxc6 {[%emt 0:00:17]} Bxc6 {[%emt 0:01:12]} 16. Be5 {[%emt 0:00:08]} Nd7 {[%emt 0:01:47]} 17. f4 {[%emt 0:00:38]} f5 {[%emt 0:01:32]} 18. a3 {[%emt 0:02:16]} Bb7 {[%emt 0:05:19]} 19. Qd2 {[%emt 0:00:35]} c4 {[%emt 0:05:17]} 20. Qe1 {[%emt 0:03:17]} a5 {[%emt 0:03:26]} 21. Qf2 {[%emt 0:04:04]} g4 {[%emt 0:05:31]} 22. h3 {[%emt 0:01:06]} h5 {[%emt 0:00:53]} 23. hxg4 {[%emt 0:01:30]} hxg4 {[%emt 0:00:17]} 24. Bh1 {[%emt 0:00:11]} Nxe5 {[%emt 0:00:55]} 25. fxe5 {[%emt 0:00:24]} Kg7 26. Nf4 Rh8 {[%emt 0:03:46]} 27. Qe2 {[%emt 0:03:03]} Rh6 {[%emt 0:02:41]} 28. Bg2 {[%emt 0:01:16]} Rch8 {[%emt 0:02:18]} 29. Kf2 {[%emt 0:00:33]} b4 {[%emt 0:02:51]} 30. Rh1 {[%emt 0:00:46]} Bc8 {[%emt 0:01:42]} 31. Rxh6 {[%emt 0:00:19]} Rxh6 {[%emt 0:00:06]} 32. Rh1 {[%emt 0:00:26]} Rxh1 {[%emt 0:01:10]} 33. Bxh1 {[%emt 0:00:11]} bxa3 {[%emt 0:00:11]} 34. bxa3 {[%emt 0:00:21]} Bxa3 {[%emt 0:00:24]} 35. Nh5+ {[%emt 0:01:56]} Kf7 {[%emt 0:01:02]} 36. Nf4 {[%emt 0:01:24]} Qb2 {[%emt 0:00:00]} 37. Ke1 {[%emt 0:01:23]} Qxc3+ {[%emt 0:02:22]} 38. Qd2 {[%emt 0:00:17]} Qxd2+ {[%emt 0:01:47]} 39. Kxd2 {[%emt 0:00:08]} Bb4+ {[%emt 0:00:09]} 40. Kc2 {[%emt 0:00:11]} Bd7 {[%emt 0:01:36]} 41. Ne2 {[%emt 0:01:12]} Ba4+ {[%emt 0:00:47]} 42. Kb2 {[%emt 0:00:52]} Bd1 {[%emt 0:00:14]} 43. Nc3 {[%emt 0:00:33]} Bxc3+ {[%emt 0:00:11]} 44. Kxc3 {[%emt 0:00:16]} Bf3 {[%emt 0:00:08]} 45. Bxf3 {[%emt 0:00:41]} gxf3 {[%emt 0:00:06]} 46. Kd2 {[%emt 0:00:11]} c3+ {[%emt 0:00:10]} 47. Kxc3 {[%emt 0:00:06]} f2 {[%emt 0:00:03]} 0-1

[Event "Hungarian Youth-ch U10 2022"]
[Site "Eger"]
[Date "2022.07.25"]
[Round "3.5"]
[White "Papai, Mate"]
[Black "Minga-Nagy, Abel Inti"]
[Result "0-1"]
[ECO "A45"]
[WhiteElo "1385"]
[BlackElo "1540"]
[Annotator "NA RC COMBH"]
[PlyCount "74"]
[EventDate "2022.07.21"]
[EventType "tourn"]
[EventCountry "HUN"]
[SourceTitle "playchess.com"]
[Source "ChessBase"]
[SourceQuality "1"]
[TimeControl "40/5400+30:1800+30"]

1. d4 {[%emt 0:00:32]} Nf6 {[%emt 0:00:42]} 2. Nc3 {[%emt 0:00:08]} e6 {[%emt 0:01:45]} 3. e4 {[%emt 0:00:08]} Bb4 {[%emt 0:00:55]} 4. Bd3 {[%emt 0:00:40]} O-O {[%emt 0:02:03]} 5. g4 {[%emt 0:01:03]} d5 {[%emt 0:01:07]} 6. e5 {[%emt 0:00:59]} Ne4 {[%emt 0:02:40]} 7. Bxe4 {[%emt 0:02:10]} dxe4 {[%emt 0:00:18]} 8. a3 {[%emt 0:00:13]} Bxc3+ {[%emt 0:01:27]} 9. bxc3 {[%emt 0:00:15]} c5 {[%emt 0:00:49]} 10. h4 {[%emt 0:00:33]} Nc6 {[%emt 0:01:25]} 11. Be3 {[%emt 0:00:25]} f5 {[%emt 0:01:02]} 12. gxf5 {[%emt 0:01:03]} exf5 {[%emt 0:00:26]} 13. d5 {[%emt 0:02:19]} Nxe5 {[%emt 0:01:09]} 14. Bxc5 {[%emt 0:00:10]} Re8 {[%emt 0:00:56]} 15. d6 {[%emt 0:01:09]} b6 {[%emt 0:00:52]} 16. Qd5+ {[%emt 0:00:39]} Be6 {[%emt 0:00:29]} 17. Qxe5 {[%emt 0:00:22]} bxc5 {[%emt 0:00:09]} 18. h5 {[%emt 0:02:21]} Bf7 {[%emt 0:01:11]} 19. Qg3 {[%emt 0:03:54]} Qf6 {[%emt 0:01:56]} 20. Ne2 {[%emt 0:01:10]} Rad8 {[%emt 0:01:33]} 21. Rg1 {[%emt 0:01:28]} Bxh5 {[%emt 0:01:15]} 22. Nf4 {[%emt 0:00:39]} Bg4 {[%emt 0:01:06]} 23. Nd5 {[%emt 0:03:34]} Qxd6 {[%emt 0:01:04]} 24. Qxd6 {[%emt 0:00:21]} Rxd6 {[%emt 0:00:12]} 25. c4 {[%emt 0:00:09]} Red8 {[%emt 0:00:47]} 26. Rb1 {[%emt 0:00:25]} h5 {[%emt 0:00:49]} 27. Rb7 {[%emt 0:00:28]} Rb6 {[%emt 0:00:39]} 28. Rxb6 {[%emt 0:01:15]} axb6 {[%emt 0:00:06]} 29. a4 {[%emt 0:00:15]} h4 {[%emt 0:00:33]} 30. Rh1 {[%emt 0:00:47]} h3 {[%emt 0:00:14]} 31. Kd2 {[%emt 0:00:48]} Kf7 {[%emt 0:00:51]} 32. Ke3 {[%emt 0:00:08]} g5 {[%emt 0:01:22]} 33. c3 {[%emt 0:00:42]} Ke6 {[%emt 0:00:42]} 34. Kd2 {[%emt 0:01:59]} f4 {[%emt 0:01:05]} 35. Rb1 {[%emt 0:01:40]} Bf3 {[%emt 0:00:35]} 36. Rxb6+ {[%emt 0:00:38]} Rd6 {[%emt 0:00:28]} 37. Rxd6+ {[%emt 0:03:55]} Kxd6 {[%emt 0:00:54]} 0-1

[Event "Hungarian Youth-ch U10 2022"]
[Site "Eger"]
[Date "2022.07.25"]
[Round "3.6"]
[White "Biro, Csilla"]
[Black "Hangay, Lilla"]
[Result "0-1"]
[ECO "C45"]
[WhiteElo "1215"]
[BlackElo "1169"]
[Annotator "NA RC COMBH"]
[PlyCount "50"]
[EventDate "2022.07.21"]
[EventType "tourn"]
[EventCountry "HUN"]
[SourceTitle "playchess.com"]
[Source "ChessBase"]
[SourceQuality "1"]
[TimeControl "40/5400+30:1800+30"]

1. e4 {[%emt 0:00:36]} e5 {[%emt 0:00:47]} 2. d4 {[%emt 0:00:32]} exd4 {[%emt 0:00:30]} 3. Nf3 {[%emt 0:00:40]} Nc6 {[%emt 0:00:40]} 4. Nxd4 {[%emt 0:01:10]} Nf6 {[%emt 0:00:36]} 5. Nxc6 {[%emt 0:01:18]} bxc6 {[%emt 0:00:20]} 6. e5 {[%emt 0:01:41]} Qe7 {[%emt 0:00:39]} 7. Qe2 {[%emt 0:02:04]} Nd5 {[%emt 0:00:47]} 8. c4 {[%emt 0:01:29]} Ba6 {[%emt 0:00:44]} 9. b3 {[%emt 0:02:31]} O-O-O {[%emt 0:01:23]} 10. f4 {[%emt 0:02:44]} g6 {[%emt 0:02:04]} 11. Qf2 {[%emt 0:03:01]} Nf6 {[%emt 0:01:46]} 12. Be2 {[%emt 0:08:52]} Kb8 {[%emt 0:04:03]} 13. exf6 {[%emt 0:14:07]} Qxf6 {[%emt 0:01:03]} 14. Bd3 {[%emt 0:01:54]} Bg7 {[%emt 0:04:04]} 15. Qd2 {[%emt 0:14:54]} Qxa1 {[%emt 0:02:24]} 16. Qb4+ {[%emt 0:00:37]} Ka8 {[%emt 0:01:32]} 17. Qa5 {[%emt 0:01:20]} Qd4 {[%emt 0:03:19]} 18. Be2 {[%emt 0:06:46]} Qb6 {[%emt 0:02:09]} 19. Qa3 {[%emt 0:02:05]} Rhe8 {[%emt 0:02:08]} 20. Bd2 {[%emt 0:03:06]} Bxc4 {[%emt 0:01:53]} 21. bxc4 {[%emt 0:01:52]} Qxb1+ {[%emt 0:00:23]} 22. Bc1 {[%emt 0:01:14]} Qe4 {[%emt 0:01:33]} 23. Qf3 {[%emt 0:04:13]} Qxc4 {[%emt 0:01:45]} 24. Be3 {[%emt 0:01:33]} Qc3+ {[%emt 0:03:23]} 25. Kf2 {[%emt 0:01:04]} Rxe3 {[%emt 0:00:30]} 0-1

[Event "Hungarian Youth-ch U10 2022"]
[Site "Eger"]
[Date "2022.07.25"]
[Round "3.7"]
[White "Csiszar, Vivien"]
[Black "Illes-Nagy, Nora"]
[Result "0-1"]
[ECO "B40"]
[WhiteElo "1068"]
[BlackElo "1402"]
[Annotator "NA RC COMBH"]
[PlyCount "60"]
[EventDate "2022.07.21"]
[EventType "tourn"]
[EventCountry "HUN"]
[SourceTitle "playchess.com"]
[Source "ChessBase"]
[SourceQuality "1"]
[TimeControl "40/5400+30:1800+30"]

1. e4 {[%emt 0:00:32]} c5 {[%emt 0:00:41]} 2. Nf3 {[%emt 0:00:08]} e6 {[%emt 0:00:57]} 3. b4 {[%emt 0:00:07]} b6 {[%emt 0:00:28]} 4. bxc5 {[%emt 0:00:24]} Bxc5 5. d4 {[%emt 0:04:38]} Bb4+ {[%emt 0:02:59]} 6. c3 {[%emt 0:01:21]} Be7 {[%emt 0:00:20]} 7. Be2 {[%emt 0:01:40]} Nf6 {[%emt 0:07:05]} 8. e5 {[%emt 0:02:16]} Nd5 {[%emt 0:01:08]} 9. O-O {[%emt 0:13:59]} O-O {[%emt 0:02:48]} 10. c4 {[%emt 0:08:14]} Nc7 {[%emt 0:03:37]} 11. Nc3 {[%emt 0:04:09]} d5 {[%emt 0:03:00]} 12. Qb3 {[%emt 0:10:23]} dxc4 {[%emt 0:03:28]} 13. Bxc4 {[%emt 0:01:05]} Nc6 {[%emt 0:02:04]} 14. Rd1 {[%emt 0:07:06]} Na5 {[%emt 0:00:50]} 15. Qa4 {[%emt 0:02:52]} Bd7 {[%emt 0:02:44]} 16. Bb5 {[%emt 0:01:05]} Nxb5 {[%emt 0:00:05]} 17. Nxb5 {[%emt 0:02:22]} a6 {[%emt 0:00:02]} 18. Qc2 {[%emt 0:03:58]} Bxb5 {[%emt 0:00:32]} 19. a4 {[%emt 0:00:41]} Rc8 {[%emt 0:00:56]} 20. Qb2 {[%emt 0:02:31]} Bc4 {[%emt 0:02:20]} 21. Nd2 {[%emt 0:03:27]} Bd3 {[%emt 0:01:16]} 22. Nf3 {[%emt 0:02:00]} Rc2 {[%emt 0:02:37]} 23. Qb1 {[%emt 0:00:24]} Rd2 {[%emt 0:00:24]} 24. Bxd2 {[%emt 0:01:21]} Bxb1 {[%emt 0:00:06]} 25. Rdxb1 {[%emt 0:00:20]} Qd5 {[%emt 0:00:35]} 26. Rxb6 {[%emt 0:01:35]} Nc4 {[%emt 0:01:05]} 27. Rxa6 {[%emt 0:00:41]} Nxd2 {[%emt 0:00:15]} 28. Nxd2 {[%emt 0:00:36]} Qxd4 {[%emt 0:00:17]} 29. Ra2 {[%emt 0:03:06]} Bb4 {[%emt 0:01:03]} 30. a5 {[%emt 0:00:39]} Bxd2 {[%emt 0:00:52]} 0-1

[Event "Hungarian Youth-ch U10 2022"]
[Site "Eger"]
[Date "2022.07.25"]
[Round "3.8"]
[White "Wang, Luomeng"]
[Black "Hangyal, Anna"]
[Result "1-0"]
[ECO "B32"]
[WhiteElo "1078"]
[BlackElo "1154"]
[Annotator "NA RC COMBH"]
[PlyCount "69"]
[EventDate "2022.07.21"]
[EventType "tourn"]
[EventCountry "HUN"]
[SourceTitle "playchess.com"]
[Source "ChessBase"]
[SourceQuality "1"]
[TimeControl "40/5400+30:1800+30"]

1. e4 {[%emt 0:00:32]} c5 {[%emt 0:00:37]} 2. Nf3 {[%emt 0:00:20]} Nc6 {[%emt 0:00:13]} 3. d4 {[%emt 0:00:50]} cxd4 {[%emt 0:00:08]} 4. Nxd4 {[%emt 0:00:29]} e5 {[%emt 0:00:08]} 5. Nb5 {[%emt 0:01:04]} d6 {[%emt 0:00:39]} 6. c4 {[%emt 0:00:46]} a6 {[%emt 0:00:14]} 7. N5a3 {[%emt 0:00:37]} Nf6 {[%emt 0:00:11]} 8. Nc3 {[%emt 0:01:39]} Be7 {[%emt 0:00:52]} 9. Be2 {[%emt 0:01:16]} Nd4 {[%emt 0:02:04]} 10. O-O {[%emt 0:02:56]} O-O {[%emt 0:00:41]} 11. Be3 {[%emt 0:01:10]} Nxe2+ {[%emt 0:00:32]} 12. Qxe2 {[%emt 0:00:43]} Be6 {[%emt 0:04:33]} 13. f3 {[%emt 0:04:05]} Rc8 {[%emt 0:00:16]} 14. Rac1 {[%emt 0:02:48]} Bd7 {[%emt 0:03:38]} 15. Rfd1 {[%emt 0:04:48]} Qe8 {[%emt 0:02:00]} 16. Nc2 {[%emt 0:06:13]} Be6 {[%emt 0:04:13]} 17. b3 {[%emt 0:02:11]} b5 {[%emt 0:00:30]} 18. Nd5 {[%emt 0:01:54]} Nxd5 {[%emt 0:01:04]} 19. cxd5 {[%emt 0:00:31]} Bd7 {[%emt 0:00:12]} 20. Nb4 {[%emt 0:02:19]} f5 {[%emt 0:01:12]} 21. Rxc8 {[%emt 0:03:50]} Bxc8 {[%emt 0:00:55]} 22. Bf2 {[%emt 0:02:38]} Qg6 {[%emt 0:00:32]} 23. Nc6 {[%emt 0:01:11]} Bf6 {[%emt 0:02:11]} 24. Rc1 {[%emt 0:01:36]} fxe4 {[%emt 0:01:32]} 25. fxe4 {[%emt 0:01:07]} Kh8 {[%emt 0:01:29]} 26. a4 {[%emt 0:02:40]} Bg5 {[%emt 0:01:25]} 27. Rc2 {[%emt 0:02:47]} Qh6 {[%emt 0:03:48]} 28. axb5 {[%emt 0:00:48]} Rxf2 {[%emt 0:01:05]} 29. Kxf2 {[%emt 0:01:39]} axb5 {[%emt 0:01:14]} 30. h3 Qh4+ {[%emt 0:01:40]} 31. Kf1 {[%emt 0:02:50]} h6 {[%emt 0:01:17]} 32. Qf3 {[%emt 0:01:07]} Ba6 {[%emt 0:00:44]} 33. Nb4 {[%emt 0:01:00]} Bb7 {[%emt 0:00:45]} 34. Rc7 {[%emt 0:00:40]} Bd2 {[%emt 0:01:20]} 35. Qf8+ {[%emt 0:00:20]} 1-0

[Event "Hungarian Youth-ch U10 2022"]
[Site "Eger"]
[Date "2022.07.26"]
[Round "4.1"]
[White "Morovan-Szabo, Lorinc"]
[Black "Minga-Nagy, Abel Inti"]
[Result "1/2-1/2"]
[ECO "B73"]
[WhiteElo "1232"]
[BlackElo "1540"]
[Annotator "NA RC COMBH"]
[PlyCount "101"]
[EventDate "2022.07.21"]
[EventType "tourn"]
[EventCountry "HUN"]
[SourceTitle "playchess.com"]
[Source "ChessBase"]
[SourceQuality "1"]
[TimeControl "40/5400+30:1800+30"]

1. e4 {[%emt 0:00:48]} c5 {[%emt 0:00:14]} 2. Nf3 {[%emt 0:00:32]} d6 {[%emt 0:00:16]} 3. d4 {[%emt 0:00:40]} cxd4 {[%emt 0:00:07]} 4. Nxd4 {[%emt 0:00:15]} Nf6 {[%emt 0:00:25]} 5. Nc3 {[%emt 0:00:17]} Nc6 {[%emt 0:00:22]} 6. Be2 {[%emt 0:01:08]} g6 {[%emt 0:00:40]} 7. Be3 {[%emt 0:00:37]} Bg7 {[%emt 0:00:13]} 8. O-O O-O 9. f4 {[%emt 0:02:05]} Qb6 {[%emt 0:00:56]} 10. Qd2 {[%emt 0:04:15]} Nxe4 {[%emt 0:00:40]} 11. Nxc6 {[%emt 0:00:27]} Qxc6 {[%emt 0:01:07]} 12. Nxe4 {[%emt 0:01:04]} Qxe4 {[%emt 0:00:09]} 13. Bf3 {[%emt 0:00:35]} Qc4 {[%emt 0:02:16]} 14. Be2 {[%emt 0:01:21]} Qc7 {[%emt 0:00:22]} 15. c3 {[%emt 0:00:29]} Bf5 {[%emt 0:00:47]} 16. Bf3 {[%emt 0:01:17]} Rad8 {[%emt 0:03:52]} 17. g4 {[%emt 0:00:44]} Bc8 {[%emt 0:00:40]} 18. Rf2 {[%emt 0:00:39]} e5 {[%emt 0:00:44]} 19. h3 {[%emt 0:01:19]} Rfe8 {[%emt 0:01:50]} 20. Bd5 {[%emt 0:00:51]} exf4 {[%emt 0:01:55]} 21. Rxf4 {[%emt 0:02:44]} Be6 {[%emt 0:00:31]} 22. Bxe6 {[%emt 0:03:21]} Rxe6 {[%emt 0:00:10]} 23. Qf2 {[%emt 0:01:08]} Rde8 {[%emt 0:00:42]} 24. Rf3 {[%emt 0:00:51]} b5 {[%emt 0:00:41]} 25. Rf1 {[%emt 0:00:55]} Qc4 {[%emt 0:01:03]} 26. Bd4 {[%emt 0:12:35]} Re2 {[%emt 0:00:41]} 27. Rxf7 {[%emt 0:03:53]} Rxf2 {[%emt 0:00:22]} 28. Rxg7+ {[%emt 0:00:23]} Kh8 {[%emt 0:00:49]} 29. Re7+ {[%emt 0:01:36]} Qxd4 {[%emt 0:00:20]} 30. Rxe8+ {[%emt 0:00:10]} Rf8+ {[%emt 0:00:05]} 31. cxd4 {[%emt 0:00:42]} Rxe8 {[%emt 0:00:06]} 32. Kf2 {[%emt 0:03:20]} Kg7 {[%emt 0:00:18]} 33. Kg3 {[%emt 0:01:03]} Re2 {[%emt 0:00:06]} 34. Rf2 {[%emt 0:00:12]} Re3+ {[%emt 0:00:45]} 35. Rf3 {[%emt 0:00:44]} Rxf3+ {[%emt 0:00:41]} 36. Kxf3 {[%emt 0:00:19]} Kf6 {[%emt 0:00:28]} 37. Kf4 {[%emt 0:00:29]} g5+ {[%emt 0:00:15]} 38. Kf3 {[%emt 0:01:50]} Ke6 {[%emt 0:00:22]} 39. Ke4 {[%emt 0:00:53]} d5+ {[%emt 0:00:34]} 40. Ke3 {[%emt 0:00:55]} Kf6 {[%emt 0:00:00]} 41. Kf3 {[%emt 0:01:13]} Kg6 {[%emt 0:00:31]} 42. Kg2 {[%emt 0:00:31]} a5 {[%emt 0:00:45]} 43. b3 {[%emt 0:00:58]} h5 {[%emt 0:00:20]} 44. a4 {[%emt 0:00:54]} hxg4 {[%emt 0:00:44]} 45. hxg4 {[%emt 0:00:10]} Kf6 {[%emt 0:00:10]} 46. Kf3 {[%emt 0:00:28]} Ke6 {[%emt 0:00:34]} 47. Ke3 {[%emt 0:00:26]} Kf6 {[%emt 0:00:49]} 48. Kf3 {[%emt 0:00:53]} Kf7 {[%emt 0:00:08]} 49. Kf2 {[%emt 0:00:08]} Kf8 {[%emt 0:00:14]} 50. Kf1 {[%emt 0:00:29]} bxa4 51. bxa4 1/2-1/2

[Event "Hungarian Youth-ch U10 2022"]
[Site "Eger"]
[Date "2022.07.26"]
[Round "4.2"]
[White "Meszaros-Csonka, David"]
[Black "Papai, Mate"]
[Result "1/2-1/2"]
[ECO "B40"]
[WhiteElo "1361"]
[BlackElo "1385"]
[Annotator "NA RC COMBH"]
[PlyCount "57"]
[EventDate "2022.07.21"]
[EventType "tourn"]
[EventCountry "HUN"]
[SourceTitle "playchess.com"]
[Source "ChessBase"]
[SourceQuality "1"]
[TimeControl "40/5400+30:1800+30"]

1. e4 {[%emt 0:00:44]} c5 {[%emt 0:00:43]} 2. Nf3 {[%emt 0:00:32]} e6 {[%emt 0:00:19]} 3. c4 {[%emt 0:00:53]} Nc6 {[%emt 0:02:31]} 4. Nc3 {[%emt 0:01:35]} a6 {[%emt 0:02:19]} 5. Be2 {[%emt 0:06:21]} d6 {[%emt 0:04:59]} 6. O-O {[%emt 0:02:48]} Nf6 {[%emt 0:04:20]} 7. d4 {[%emt 0:02:14]} cxd4 {[%emt 0:03:38]} 8. Nxd4 {[%emt 0:00:39]} Be7 {[%emt 0:03:19]} 9. Be3 {[%emt 0:02:32]} O-O {[%emt 0:02:22]} 10. f3 {[%emt 0:01:51]} Bd7 {[%emt 0:06:16]} 11. Qd2 Rc8 {[%emt 0:05:25]} 12. Rfc1 {[%emt 0:15:56]} Re8 {[%emt 0:09:58]} 13. Rab1 {[%emt 0:14:33]} Na5 {[%emt 0:06:51]} 14. Nd1 {[%emt 0:05:45]} e5 {[%emt 0:04:50]} 15. Nb3 {[%emt 0:06:04]} Nxb3 {[%emt 0:02:54]} 16. axb3 a5 {[%emt 0:01:14]} 17. Nc3 {[%emt 0:04:23]} b6 {[%emt 0:04:37]} 18. Nd5 {[%emt 0:07:05]} Nxd5 {[%emt 0:01:56]} 19. exd5 {[%emt 0:00:32]} Bf5 {[%emt 0:02:07]} 20. Ra1 {[%emt 0:04:22]} Bf6 {[%emt 0:02:55]} 21. b4 {[%emt 0:03:39]} e4 {[%emt 0:03:01]} 22. Ra4 {[%emt 0:06:46]} exf3 {[%emt 0:01:50]} 23. Bxf3 {[%emt 0:00:53]} Bxb2 {[%emt 0:01:04]} 24. Re1 {[%emt 0:01:45]} Bf6 {[%emt 0:00:36]} 25. bxa5 {[%emt 0:00:34]} bxa5 {[%emt 0:00:42]} 26. Bf4 {[%emt 0:02:13]} Rxe1+ {[%emt 0:02:55]} 27. Qxe1 {[%emt 0:00:11]} Qe8 {[%emt 0:04:10]} 28. Qxe8+ {[%emt 0:02:23]} Rxe8 {[%emt 0:00:09]} 29. Kf2 {[%emt 0:00:29]} 1/2-1/2

[Event "Hungarian Youth-ch U10 2022"]
[Site "Eger"]
[Date "2022.07.26"]
[Round "4.3"]
[White "Molnar-Saska, Tamas"]
[Black "Brieber, Benedek"]
[Result "1/2-1/2"]
[ECO "B01"]
[WhiteElo "1455"]
[BlackElo "1369"]
[Annotator "NA RC COMBH"]
[PlyCount "79"]
[EventDate "2022.07.21"]
[EventType "tourn"]
[EventCountry "HUN"]
[SourceTitle "playchess.com"]
[Source "ChessBase"]
[SourceQuality "1"]
[TimeControl "40/5400+30:1800+30"]

1. e4 {[%emt 0:00:32]} d5 {[%emt 0:00:38]} 2. exd5 {[%emt 0:00:05]} Nf6 {[%emt 0:00:09]} 3. d4 {[%emt 0:00:09]} Bg4 {[%emt 0:00:06]} 4. Bb5+ {[%emt 0:00:07]} c6 {[%emt 0:00:19]} 5. dxc6 {[%emt 0:00:17]} bxc6 {[%emt 0:00:23]} 6. Be2 {[%emt 0:00:18]} Bxe2 {[%emt 0:00:21]} 7. Nxe2 {[%emt 0:03:40]} e6 {[%emt 0:00:33]} 8. Nbc3 {[%emt 0:00:53]} Bb4 {[%emt 0:00:53]} 9. O-O {[%emt 0:00:49]} O-O {[%emt 0:00:47]} 10. Bg5 {[%emt 0:00:17]} h6 {[%emt 0:01:20]} 11. Bh4 {[%emt 0:00:38]} Be7 {[%emt 0:01:06]} 12. Na4 {[%emt 0:08:11]} Nd5 {[%emt 0:03:33]} 13. Bxe7 {[%emt 0:01:58]} Qxe7 {[%emt 0:02:33]} 14. Nec3 {[%emt 0:00:51]} f5 {[%emt 0:00:23]} 15. Nxd5 {[%emt 0:00:31]} cxd5 {[%emt 0:00:10]} 16. Re1 {[%emt 0:00:30]} f4 {[%emt 0:00:48]} 17. Qe2 Rf6 {[%emt 0:00:26]} 18. f3 {[%emt 0:02:30]} Qb4 {[%emt 0:01:03]} 19. b3 {[%emt 0:04:29]} Qxd4+ {[%emt 0:00:22]} 20. Kh1 {[%emt 0:00:21]} Nc6 {[%emt 0:05:08]} 21. c3 {[%emt 0:02:20]} Qe3 {[%emt 0:00:08]} 22. Qd1 {[%emt 0:01:03]} Qf2 {[%emt 0:00:20]} 23. Re2 {[%emt 0:01:31]} Qh4 {[%emt 0:00:23]} 24. Nc5 {[%emt 0:03:16]} Re8 {[%emt 0:05:45]} 25. Qe1 {[%emt 0:02:16]} Qxe1+ {[%emt 0:00:21]} 26. Raxe1 {[%emt 0:00:11]} Nd8 {[%emt 0:00:42]} 27. h3 {[%emt 0:01:08]} Kf7 {[%emt 0:02:49]} 28. Nd7 {[%emt 0:02:09]} Rf5 {[%emt 0:00:24]} 29. Re5 {[%emt 0:02:10]} Rxe5 {[%emt 0:00:53]} 30. Nxe5+ {[%emt 0:00:24]} Kg8 {[%emt 0:02:23]} 31. Nd3 {[%emt 0:01:17]} g5 {[%emt 0:01:18]} 32. h4 {[%emt 0:00:28]} Nc6 {[%emt 0:02:28]} 33. Kh2 {[%emt 0:00:37]} e5 {[%emt 0:01:03]} 34. Nf2 {[%emt 0:03:12]} Kf7 {[%emt 0:00:39]} 35. Kh3 {[%emt 0:01:21]} Kg6 {[%emt 0:00:56]} 36. hxg5 {[%emt 0:03:41]} hxg5 {[%emt 0:00:22]} 37. Kh2 {[%emt 0:01:16]} Kf5 {[%emt 0:00:23]} 38. c4 {[%emt 0:00:28]} dxc4 {[%emt 0:00:41]} 39. bxc4 {[%emt 0:00:10]} Rb8 {[%emt 0:01:48]} 40. Re2 {[%emt 0:00:00]} 1/2-1/2

[Event "Hungarian Youth-ch U10 2022"]
[Site "Eger"]
[Date "2022.07.26"]
[Round "4.4"]
[White "Szollosi, Balazs"]
[Black "Hegedus, Zsombor"]
[Result "0-1"]
[ECO "C54"]
[WhiteElo "1423"]
[BlackElo "1348"]
[Annotator "NA RC COMBH"]
[PlyCount "93"]
[EventDate "2022.07.21"]
[EventType "tourn"]
[EventCountry "HUN"]
[SourceTitle "playchess.com"]
[Source "ChessBase"]
[SourceQuality "1"]
[TimeControl "40/5400+30:1800+30"]

1. e4 {[%emt 0:00:32]} e5 {[%emt 0:00:36]} 2. Nf3 {[%emt 0:00:06]} Nc6 {[%emt 0:00:13]} 3. Bc4 {[%emt 0:00:17]} Bc5 {[%emt 0:00:32]} 4. c3 {[%emt 0:00:18]} Nf6 {[%emt 0:00:25]} 5. d4 {[%emt 0:00:08]} exd4 {[%emt 0:00:42]} 6. cxd4 {[%emt 0:00:23]} Bb4+ {[%emt 0:00:24]} 7. Bd2 {[%emt 0:00:11]} Bxd2+ {[%emt 0:00:30]} 8. Nbxd2 {[%emt 0:00:10]} d5 {[%emt 0:00:19]} 9. exd5 {[%emt 0:00:33]} Nxd5 {[%emt 0:01:01]} 10. O-O {[%emt 0:00:20]} O-O {[%emt 0:00:38]} 11. Re1 {[%emt 0:00:33]} h6 {[%emt 0:03:27]} 12. Ne5 {[%emt 0:03:14]} Nxd4 {[%emt 0:08:12]} 13. Ne4 {[%emt 0:00:41]} Nb6 {[%emt 0:01:22]} 14. Bxf7+ {[%emt 0:04:15]} Rxf7 {[%emt 0:01:55]} 15. Nxf7 {[%emt 0:00:09]} Kxf7 {[%emt 0:00:14]} 16. Re3 {[%emt 0:00:37]} Bf5 {[%emt 0:02:09]} 17. Rc1 {[%emt 0:19:27]} Bxe4 {[%emt 0:06:34]} 18. Rxe4 {[%emt 0:00:33]} Nc6 {[%emt 0:02:16]} 19. Qb3+ {[%emt 0:12:17]} Qd5 {[%emt 0:07:04]} 20. Qxd5+ {[%emt 0:09:50]} Nxd5 {[%emt 0:00:40]} 21. Rc5 {[%emt 0:01:36]} Nf6 {[%emt 0:01:01]} 22. Re1 {[%emt 0:01:32]} a6 {[%emt 0:02:26]} 23. h3 {[%emt 0:02:20]} Rd8 {[%emt 0:02:30]} 24. Re3 {[%emt 0:04:48]} Rd6 {[%emt 0:06:53]} 25. Rb3 {[%emt 0:03:27]} b6 {[%emt 0:02:37]} 26. Rc1 {[%emt 0:00:36]} Nd5 {[%emt 0:05:26]} 27. Rf3+ {[%emt 0:01:12]} Kg8 {[%emt 0:02:04]} 28. Rd3 {[%emt 0:02:11]} Ncb4 {[%emt 0:05:27]} 29. Rdd1 {[%emt 0:01:02]} c5 {[%emt 0:04:37]} 30. a3 {[%emt 0:00:25]} Nc6 {[%emt 0:01:23]} 31. Kf1 {[%emt 0:05:35]} Nce7 {[%emt 0:02:01]} 32. g4 {[%emt 0:03:13]} Kf7 {[%emt 0:03:24]} 33. Rd3 Ke6 34. Re1+ {[%emt 0:01:31]} Kd7 {[%emt 0:00:48]} 35. Red1 {[%emt 0:00:08]} Kc6 36. Kg1 {[%emt 0:03:06]} Ng6 {[%emt 0:02:24]} 37. Kh2 {[%emt 0:05:11]} Ngf4 {[%emt 0:00:56]} 38. Rf3 {[%emt 0:00:46]} Re6 {[%emt 0:02:24]} 39. Kg3 {[%emt 0:01:42]} g5 {[%emt 0:02:40]} 40. a4 {[%emt 0:00:00]} Re2 {[%emt 0:00:00]} 41. b3 {[%emt 0:06:07]} b5 {[%emt 0:06:47]} 42. axb5+ {[%emt 0:01:29]} Kxb5 {[%emt 0:01:16]} 43. Kh2 {[%emt 0:02:30]} Kb4 {[%emt 0:01:04]} 44. Rb1 {[%emt 0:00:41]} Nc3 {[%emt 0:00:50]} 45. Rc1 {[%emt 0:00:34]} Ne4 {[%emt 0:01:16]} 46. Kg1 {[%emt 0:03:02]} Nd2 {[%emt 0:01:38]} 47. Rfc3 0-1